bitfinex-derivatives/quotes_BNBF0:USTF0_20250128
["timestamp","ask_amount","ask_price","bid_price","bid_amount"]
[1738032866768,0.24362648,680.26,679.33,0.27032711]
[1738032866970,0.24362648,680.26,679.34,0.27032711]
[1738032867171,0.24362648,680.26,679.35,0.27032711]
[1738032867468,0.24362648,680.26,679.33,0.27032711]
[1738032867662,0.24362648,680.26,679.34,0.27032711]
[1738032867869,0.24362648,680.26,679.33,0.27032711]
[1738032868169,0.24362648,680.26,679.34,0.27032711]
[1738032868370,0.24362648,680.26,679.33,0.27032711]
[1738032868564,0.24362648,680.26,679.34,0.27032711]
[1738032868764,0.24362648,680.26,679.33,0.27032711]
[1738032868968,0.24362648,680.26,679.34,0.27032711]
[1738032869173,1.09515682,680.19,679.35,1.09597935]
[1738032869470,1.09515682,680.19,679.36,0.27032711]
[1738032869871,1.09515682,680.19,679.37,0.27031798]
[1738032870170,1.09515682,680.19,679.38,0.27031798]
[1738032870373,1.09515682,680.19,679.36,0.27031798]
[1738032870571,1.09515682,680.19,679.35,1.09597935]
[1738032870772,1.09515682,680.19,679.36,0.27031808]
[1738032871670,1.09515682,680.19,679.37,0.27031828]
[1738032871872,1.09515682,680.19,679.36,0.27031828]
[1738032872173,1.09515682,680.18,679.4,1.09597935]
[1738032875575,1.09515682,680.18,679.38,1.09597935]
[1738032879378,1.09515682,680.19,679.35,1.09597935]
[1738032882081,1.09515682,680.18,679.37,1.09597935]
[1738032885387,1.09842927,680.46,679.32,1.53529976]
[1738032885388,1.09515682,680.16,679.39,1.09597935]
[1738032891490,1.09515682,680.23,679.38,1.09597935]
[1738032894891,1.09515682,680.46,679.35,1.53539572]
[1738032896992,1.09515682,680.54,679.35,1.53539572]
[1738032899894,1.09515682,680.56,679.35,1.53539572]
[1738032900095,0.24359484,680.55,679.35,1.53539572]
[1738032902894,1.09515682,680.42,679.35,1.53539572]
[1738032904492,0.24361373,680.41,679.35,1.53539572]
[1738032905497,0.24361373,680.4,679.35,1.53539572]
[1738032905697,0.24362477,680.39,679.35,1.53539572]
[1738032905898,0.24362477,680.42,679.35,1.53539572]
[1738032906094,0.24362477,680.41,679.35,1.53539572]
[1738032906398,0.24362477,680.4,679.35,1.53539572]
[1738032906600,0.24362477,680.42,679.35,1.53539572]
[1738032906897,0.24362477,680.41,679.35,1.53539572]
[1738032907098,0.24362477,680.42,679.35,1.53539572]
[1738032907300,0.24362477,680.41,679.35,1.53539572]
[1738032907500,0.24362477,680.42,679.35,1.53539572]
[1738032907701,0.24362477,680.41,679.35,1.53539572]
[1738032907896,1.09515682,680.34,679.35,1.53539572]
[1738032911098,1.09515682,680.31,679.35,1.53539572]
[1738032914404,1.09515682,680.35,679.35,1.53539572]
[1738032917907,1.09515682,680.42,679.35,1.53539572]
[1738032921606,1.09515682,680.45,679.35,1.53539572]
[1738032924107,0.24358511,680.44,679.36,0.27028503]
[1738032924907,1.09515682,680.4,679.36,0.27028503]
[1738032925807,1.09515682,680.4,679.37,0.27028485]
[1738032926006,1.09515682,680.4,679.36,0.27028485]
[1738032926206,1.09515682,680.4,679.38,0.27028485]
[1738032926409,1.09515682,680.4,679.39,0.27028485]
[1738032926805,1.09515682,680.4,679.4,0.27028485]
[1738032927009,1.09515682,680.4,679.36,0.27028485]
[1738032927208,1.09515682,680.4,679.37,0.27028485]
[1738032927405,1.09515682,680.4,679.38,0.27028485]
[1738032927612,1.09515682,680.4,679.39,0.27028485]
[1738032927812,1.09515682,680.38,679.36,1.3662642]
[1738032928011,1.09515682,680.38,679.37,0.27028485]
[1738032928712,0.24357715,680.37,679.37,0.27028485]
[1738032929512,1.09515682,680.38,679.38,0.27027558]
[1738032929706,1.09515682,680.38,679.39,0.27027558]
[1738032929909,1.09515682,680.38,679.37,0.27027558]
[1738032930110,1.09515682,680.38,679.38,0.27027558]
[1738032930311,1.09515682,680.38,679.37,0.27027558]
[1738032930612,1.09515682,680.38,679.38,0.27027558]
[1738032930813,1.09515682,680.38,679.39,0.27027558]
[1738032931109,1.09515682,680.38,679.37,0.27027558]
[1738032931309,1.09515682,680.38,679.43,1.09597935]
[1738032931613,1.09515682,680.35,679.43,1.09597935]
[1738032934913,1.09515682,680.4,679.38,1.53522639]
[1738032935113,1.09515682,680.4,679.39,0.27028202]
[1738032936114,1.09515682,680.4,679.38,1.53522639]
[1738032936307,1.09515682,680.4,679.39,0.27028444]
[1738032936714,1.09515682,680.4,679.38,1.53522639]
[1738032936916,1.09515682,680.4,679.39,0.27028444]
[1738032938009,1.09515682,680.39,679.39,0.27028444]
[1738032938215,1.09515682,680.39,679.38,1.53522639]
[1738032939510,0.2435938,680.38,679.39,0.27029388]
[1738032941209,1.09515682,680.31,679.39,0.27029388]
[1738032942113,1.09515682,680.31,679.4,0.27029669]
[1738032942315,1.09515682,680.31,679.39,0.27029669]
[1738032942508,1.09515682,680.31,679.4,0.27029669]
[1738032942715,1.09515682,680.31,679.39,0.27029669]
[1738032942913,1.09515682,680.31,679.4,0.27029669]
[1738032943113,1.09515682,680.31,679.39,0.27029669]
[1738032943308,1.09515682,680.31,679.4,0.27029669]
[1738032943513,1.09515682,680.31,679.39,0.27029669]
[1738032943709,1.09515682,680.31,679.4,0.27029669]
[1738032943912,1.09515682,680.31,679.39,0.27029669]
[1738032944209,1.09515682,680.31,679.4,0.27029669]
[1738032944511,1.09515682,680.31,679.41,0.27029669]
[1738032944714,1.09515682,680.31,679.42,0.27029669]
[1738032944917,1.09515682,680.29,679.39,1.36627604]
[1738032945110,1.09515682,680.29,679.4,0.27029669]
[1738032946718,1.09515682,680.29,679.39,1.09597935]
[1738032948820,1.09515682,680.27,679.42,1.09597935]
[1738032951919,1.09515682,680.27,679.3,1.53546912]
[1738032951920,1.09515682,680.27,679.32,1.09597935]
[1738032955522,1.09515682,680.27,679.23,1.09597935]
[1738032955723,1.09515682,680.27,679.24,0.27033564]
[1738032956218,1.09515682,680.27,679.23,1.09597935]
[1738032956425,1.09515682,680.27,679.24,0.27033326]
[1738032957525,1.09515682,680.27,679.23,1.09597935]
[1738032959128,1.84360681,680.58,679.2,2.63155574]
[1738032959129,1.09515682,680.29,679.2,2.63155574]
[1738032961325,0.24367687,680.28,679.2,2.63155574]
[1738032961531,0.24367687,680.28,679.2,1.09597935]
[1738032962234,0.24367687,680.28,679.06,1.09597935]
[1738032962426,0.24367687,680.33,679.06,1.09597935]
[1738032962632,0.24367687,680.32,679.07,0.27038542]
[1738032962930,0.24367687,680.31,679.07,0.27038542]
[1738032963126,0.24367687,680.33,679.07,0.27038542]
[1738032963328,0.24367687,680.32,679.07,0.27038542]
[1738032963527,0.24367687,680.33,679.07,0.27038542]
[1738032963726,0.24367936,680.32,679.06,1.09597935]
[1738032963929,0.24367936,680.33,679.07,0.27038156]
[1738032964127,0.24367936,680.32,679.07,0.27038156]
[1738032964330,0.24367936,680.33,679.07,0.27038156]
[1738032964627,0.24367936,680.32,679.07,0.27038156]
[1738032964827,0.24367936,680.33,679.07,0.27038156]
[1738032965027,0.24367936,680.32,679.07,0.27038156]
[1738032965228,0.24367936,680.33,679.07,0.27038156]
[1738032965429,0.24367936,680.32,679.07,0.27038156]
[1738032965831,0.24367936,680.31,679.07,0.27038156]
[1738032966030,0.24367936,680.33,679.07,0.27038156]
[1738032966235,0.24367936,680.32,679.07,0.27038156]
[1738032966435,0.24367936,680.33,679.07,0.27038156]
[1738032966638,1.09515682,680.29,679.07,0.27038156]
[1738032966936,0.24367936,680.28,679.08,0.27038156]
[1738032967235,0.24367936,680.28,679.09,0.27038156]
[1738032967431,0.24367936,680.28,678.94,0.27038156]
[1738032967633,0.24367936,680.28,678.95,0.2945725]
[1738032967837,0.24367936,680.28,678.96,0.27038156]
[1738032968234,0.24367936,680.28,678.97,0.29456382]
[1738032968436,0.24367936,680.28,678.98,0.27038156]
[1738032968634,0.24367936,680.28,678.99,0.29455514]
[1738032968834,0.24367936,680.28,679.0,0.27038156]
[1738032969148,0.24367936,680.28,679.01,0.29454647]
[1738032969441,0.24367936,680.28,679.02,0.27038156]
[1738032969740,0.24367936,680.28,679.03,0.29453779]
[1738032969940,0.24367936,680.28,679.04,0.27038156]
[1738032970139,0.24367936,680.28,679.04,0.56491501]
[1738032970340,0.24367936,680.28,679.05,0.27038156]
[1738032971437,0.24367936,680.29,679.05,0.27038156]
[1738032972945,0.24366774,680.28,679.06,0.27036898]
[1738032973143,0.24366774,680.29,679.05,0.27036898]
[1738032973443,0.24366774,680.28,679.06,0.27036898]
[1738032973643,0.24366774,680.29,679.05,0.27036898]
[1738032973843,1.09515682,680.23,679.06,1.36634833]
[1738032974043,0.24366774,680.22,679.07,0.27036898]
[1738032974446,1.09515682,680.23,679.07,0.27036898]
[1738032974743,1.09515682,680.23,679.08,0.29451611]
[1738032974944,1.09515682,680.23,679.09,0.27036898]
[1738032975140,1.09515682,680.23,679.1,0.29450743]
[1738032975339,1.09515682,680.23,679.11,0.27036898]
[1738032975743,1.09515682,680.23,679.12,0.29449876]
[1738032975943,1.09515682,680.23,679.13,0.27036898]
[1738032976149,1.09515682,680.23,679.14,0.29449009]
[1738032976345,1.09515682,680.23,679.15,0.27036898]
[1738032977251,1.09515682,680.31,679.15,0.27036898]
[1738032977651,1.09515682,680.31,679.15,0.56485473]
[1738032977851,1.09515682,680.31,679.16,0.27036898]
[1738032979250,1.09515682,680.31,679.15,0.29448575]
[1738032979450,1.09515682,680.31,679.16,0.27034577]
[1738032980255,1.09515682,680.37,679.16,0.27034577]
[1738032980449,0.24364468,680.36,679.16,0.27034577]
[1738032982357,1.09515682,680.37,679.15,0.29448575]
[1738032982659,1.09515682,680.33,679.15,0.29448575]
[1738032985959,0.29386267,680.59,679.15,0.29448575]
[1738032992271,0.24360524,680.58,679.16,0.27030547]
[1738032992464,0.24360524,680.58,679.17,0.29447708]
[1738032992667,0.24360524,680.58,679.18,0.27030547]
[1738032992868,0.24360524,680.58,679.19,0.29446841]
[1738032993063,0.24360524,680.58,679.2,0.27030547]
[1738032993264,0.24360524,680.58,679.21,0.29445973]
[1738032993467,0.24360524,680.58,679.22,0.27030547]
[1738032993669,0.24359864,680.57,679.23,0.56474974]
[1738032993865,0.24359864,680.58,679.24,0.56474541]
[1738032994065,0.24359864,680.58,679.25,0.56474107]
[1738032994271,0.24359864,680.58,679.26,0.56473674]
[1738032994572,0.24359864,680.58,679.27,0.56473241]
[1738032994872,0.24359864,680.58,679.27,0.29443373]
[1738032995467,0.29386267,680.59,679.27,0.29443373]
[1738032995867,0.2435963,680.58,679.28,0.27029643]
[1738032996667,1.09515682,680.57,679.28,0.27029643]
[1738032996873,0.2435963,680.56,679.28,0.27029643]
[1738032999673,0.2435963,680.56,679.29,0.29442506]
[1738032999875,1.33875312,680.56,679.3,0.27029643]
[1738033000174,0.2435963,680.55,679.3,0.27029643]
[1738033000375,0.2435963,680.55,679.29,0.29442506]
[1738033000775,1.09515682,680.56,679.29,0.29442506]
[1738033003380,0.29386267,680.59,679.29,0.29442506]
[1738033010584,0.24359133,680.58,679.29,0.29442506]
[1738033012086,0.24359133,680.58,679.3,0.27028474]
[1738033012281,1.09515682,680.51,679.3,0.27028474]
[1738033012582,1.09515682,680.51,679.31,0.29441639]
[1738033015687,1.09515682,680.52,679.31,0.29441639]
[1738033019487,0.29386267,680.59,679.31,0.29441639]
[1738033023493,0.29386267,680.59,679.32,0.27023054]
[1738033023694,0.29386267,680.59,679.33,0.29440772]
[1738033023993,0.29386267,680.59,679.34,0.27023054]
[1738033024190,0.29386267,680.59,679.35,0.29439905]
[1738033024690,0.29386267,680.59,679.36,0.27022672]
[1738033024886,0.29386267,680.59,679.37,0.29439039]
[1738033025090,0.29386267,680.59,679.38,0.27022672]
[1738033025494,0.29386267,680.59,679.39,0.29438172]
[1738033025688,0.29386267,680.59,679.4,0.27022672]
[1738033025893,0.29386267,680.59,679.41,0.29437305]
[1738033026093,0.29386267,680.59,679.42,0.27022672]
[1738033026496,0.29386267,680.59,679.43,0.27022241]
[1738033026693,0.29386267,680.59,679.42,0.27022241]
[1738033026994,0.29386267,680.59,679.43,0.27022241]
[1738033027195,0.2435137,680.58,679.42,0.27022241]
[1738033028091,0.29386267,680.59,679.41,0.29437305]
[1738033028396,0.24351404,680.58,679.42,0.27021283]
[1738033028897,0.24351404,680.58,679.43,0.29436439]
[1738033029097,0.24351404,680.58,679.44,0.27021283]
[1738033029596,0.24351404,680.58,679.44,0.56457289]
[1738033029796,0.24351404,680.58,679.45,0.27021283]
[1738033032500,0.24351404,680.58,679.45,1.36619218]
[1738033032701,0.24351404,680.58,679.46,0.27021283]
[1738033034700,0.29386267,680.59,679.46,0.27021283]
[1738033035405,0.29386267,680.59,679.48,1.09597935]
[1738033035601,0.29386267,680.59,679.49,0.27021283]
[1738033037407,0.29386267,680.59,679.5,0.2702215]
[1738033037605,0.29386267,680.59,679.48,1.09597935]
[1738033038003,0.29386267,680.59,679.49,0.27022131]
[1738033039109,0.29386267,680.59,679.48,1.09597935]
[1738033039311,0.29386267,680.59,679.49,0.56455484]
[1738033039509,0.29386267,680.59,679.5,0.27021644]
[1738033041007,0.29386267,680.59,679.51,0.27021612]
[1738033041205,0.29386267,680.59,679.5,0.27021612]
[1738033042908,0.29386267,680.59,679.49,0.2943384]
[1738033043108,0.29386267,680.59,679.5,0.27021518]
[1738033043309,0.29386267,680.59,679.49,0.2943384]
[1738033044510,0.29386267,680.59,679.5,0.27021281]
[1738033044811,0.29386267,680.59,679.51,0.27021158]
[1738033045012,0.29386267,680.59,679.52,0.27021158]
[1738033045213,0.29386267,680.59,679.53,0.27021158]
[1738033045405,0.29386267,680.59,679.49,0.2943384]
[1738033045610,1.09515682,680.74,679.49,0.2943384]
[1738033048511,1.09515682,681.14,679.49,0.2943384]
[1738033048712,0.2936297,681.13,679.49,0.2943384]
[1738033054520,1.09515682,681.12,679.49,0.2943384]
[1738033054722,0.29363832,681.11,679.49,0.2943384]
[1738033055316,0.24348668,681.1,679.49,0.2943384]
[1738033055513,0.29364694,681.09,679.49,0.2943384]
[1738033055717,0.24348668,681.08,679.49,0.2943384]
[1738033056022,0.29365557,681.07,679.49,0.2943384]
[1738033056218,0.24348668,681.06,679.49,0.2943384]
[1738033056419,0.29366419,681.05,679.49,0.2943384]
[1738033056620,0.24348668,681.04,679.49,0.2943384]
[1738033056818,0.29367281,681.03,679.49,0.2943384]
[1738033057020,0.24348668,681.02,679.49,0.2943384]
[1738033057320,0.29368144,681.01,679.49,0.2943384]
[1738033057516,0.24348668,681.0,679.49,0.2943384]
[1738033057721,0.29369006,680.99,679.49,0.2943384]
[1738033057922,0.24348668,680.98,679.49,0.2943384]
[1738033058217,1.09515682,680.91,679.49,0.2943384]
[1738033058421,0.53721556,680.9,679.49,0.2943384]
[1738033058622,0.53721988,680.89,679.49,0.2943384]
[1738033058920,0.24348668,680.88,679.49,0.2943384]
[1738033059518,0.2937332,680.89,679.49,0.2943384]
[1738033059715,0.24350771,680.88,679.49,0.2943384]
[1738033061516,0.2937332,680.89,679.49,0.2943384]
[1738033062220,0.24350917,680.88,679.49,0.2943384]
[1738033062421,1.09515682,680.79,679.49,0.2943384]
[1738033062822,0.24350917,680.78,679.49,0.2943384]
[1738033063322,1.09515682,680.79,679.49,0.2943384]
[1738033064921,1.09515682,680.74,679.49,0.2943384]
[1738033068421,0.2937332,680.89,679.49,0.2943384]
[1738033068422,1.09515682,680.75,679.49,0.2943384]
[1738033071123,0.24350922,680.74,679.49,0.2943384]
[1738033071326,1.09515682,680.75,679.49,0.2943384]
[1738033072222,1.09515682,680.75,679.5,0.27020732]
[1738033072427,0.2435086,680.74,679.5,0.27020732]
[1738033072727,1.33866542,680.74,679.49,0.2943384]
[1738033072926,0.2435086,680.73,679.49,0.2943384]
[1738033073127,0.24351552,680.72,679.49,0.2943384]
[1738033073321,1.09515682,680.74,679.49,0.2943384]
[1738033073322,0.24351552,680.73,679.49,0.2943384]
[1738033073525,0.24351552,680.72,679.49,0.2943384]
[1738033073725,0.24351552,680.73,679.49,0.2943384]
[1738033073925,0.24351552,680.71,679.49,0.2943384]
[1738033074223,0.24351552,680.7,679.49,0.2943384]
[1738033074423,0.24351552,680.73,679.49,0.2943384]
[1738033074624,0.24351552,680.72,679.49,0.2943384]
[1738033074819,0.24351552,680.71,679.49,0.2943384]
[1738033075027,0.24351552,680.73,679.49,0.2943384]
[1738033075327,1.09515682,680.66,679.49,0.2943384]
[1738033075627,0.24351552,680.65,679.49,0.2943384]
[1738033078427,1.09515682,680.62,679.49,0.2943384]
[1738033080828,0.2937332,680.89,679.49,0.2943384]
[1738033080829,1.09515682,680.63,679.49,0.2943384]
[1738033083230,1.09515682,680.63,679.5,0.2702105]
[1738033083631,1.09515682,680.63,679.51,0.29432973]
[1738033083828,1.09515682,680.63,679.52,0.2702105]
[1738033084129,1.09515682,680.63,679.53,0.29432107]
[1738033084329,1.09515682,680.63,679.54,0.2702105]
[1738033085130,1.09515682,680.64,679.54,0.2702105]
[1738033086231,1.09515682,680.64,679.55,0.27019866]
[1738033086424,1.09515682,680.64,679.54,0.27019866]
[1738033086627,1.09515682,680.64,679.55,0.27019866]
[1738033086826,1.09515682,680.64,679.54,0.27019866]
[1738033087032,1.09515682,680.64,679.55,0.27019866]
[1738033087231,1.09515682,680.64,679.56,0.27019762]
[1738033087431,1.09515682,680.64,679.54,0.27019762]
[1738033087631,1.09515682,680.64,679.55,0.27019762]
[1738033087932,1.09515682,680.62,679.56,0.27019762]
[1738033088128,1.09515682,680.62,679.57,0.27019762]
[1738033088331,1.09515682,680.62,679.58,0.27019762]
[1738033088632,1.09515682,680.62,679.59,0.27019762]
[1738033088826,1.09515682,680.62,679.54,1.09597935]
[1738033089025,1.09515682,680.62,679.55,0.27019776]
[1738033091434,1.09515682,680.61,679.56,1.09597935]
[1738033091633,1.09515682,680.61,679.57,0.27019776]
[1738033092236,1.09515682,680.61,679.58,0.29429942]
[1738033092434,1.09515682,680.61,679.59,0.27019776]
[1738033095033,1.09515682,680.61,679.58,0.29429942]
[1738033103936,1.09515682,680.68,679.6,1.09597935]
[1738033106838,1.09515682,680.85,679.58,0.29429942]
[1738033112838,1.09515682,680.79,679.58,0.29429942]
[1738033118049,0.2434753,680.78,679.59,0.27017354]
[1738033119448,1.09515682,680.76,679.59,0.27017354]
[1738033119842,0.24347509,680.75,679.59,0.27017354]
[1738033120648,0.24347509,680.75,679.58,0.29429942]
[1738033122453,0.24347509,680.75,679.59,0.27020736]
[1738033122653,0.24347509,680.75,679.58,0.29429942]
[1738033123355,1.09515682,680.76,679.58,0.29429942]
[1738033123555,1.09515682,680.61,679.59,0.2702061]
[1738033123859,1.09515682,680.61,679.58,1.39027877]
[1738033124953,1.09515682,680.61,679.59,0.27020848]
[1738033125151,1.09515682,680.61,679.58,1.39027877]
[1738033125357,0.2435142,680.6,679.58,1.39027877]
[1738033125653,1.09515682,680.56,679.58,0.29429942]
[1738033126258,0.24354116,680.55,679.58,0.29429942]
[1738033129662,1.09515682,680.5,679.58,0.29429942]
[1738033134869,1.09515682,680.58,679.58,0.29429942]
[1738033135369,1.09515682,680.65,679.58,0.29429942]
[1738033135566,0.24354591,680.64,679.58,0.29429942]
[1738033138365,0.24354938,680.63,679.58,0.29429942]
[1738033138565,0.24354938,680.64,679.58,0.29429942]
[1738033138868,0.24354938,680.63,679.58,0.29429942]
[1738033139067,0.24354938,680.62,679.58,0.29429942]
[1738033139268,0.24354938,680.61,679.58,0.29429942]
[1738033139568,0.24354938,680.6,679.58,0.29429942]
[1738033139770,1.09515682,680.65,679.58,0.29429942]
[1738033139771,0.24354938,680.64,679.58,0.29429942]
[1738033140070,0.24354938,680.63,679.58,0.29429942]
[1738033140263,0.24354938,680.62,679.58,0.29429942]
[1738033140463,0.24354938,680.61,679.58,0.29429942]
[1738033140663,1.09515682,680.64,679.58,0.29429942]
[1738033140664,0.24354938,680.63,679.58,0.29429942]
[1738033140866,0.24354938,680.62,679.58,0.29429942]
[1738033141067,0.24354938,680.63,679.58,0.29429942]
[1738033141266,0.24354938,680.62,679.58,0.29429942]
[1738033141663,0.24354938,680.61,679.58,0.29429942]
[1738033141869,0.24354938,680.63,679.58,0.29429942]
[1738033142069,0.24354938,680.62,679.58,0.29429942]
[1738033142369,0.24354938,680.61,679.58,0.29429942]
[1738033142570,0.24354938,680.6,679.58,0.29429942]
[1738033142865,0.24354938,680.59,679.58,0.29429942]
[1738033143069,0.24354938,680.58,679.58,0.29429942]
[1738033143265,0.24354938,680.64,679.58,0.29429942]
[1738033143570,0.24354938,680.63,679.58,0.29429942]
[1738033143770,0.24354938,680.64,679.58,0.29429942]
[1738033144069,0.24354938,680.63,679.58,0.29429942]
[1738033144273,0.24354938,680.62,679.58,0.29429942]
[1738033144465,0.24354938,680.64,679.58,0.29429942]
[1738033144667,0.24354938,680.63,679.58,0.29429942]
[1738033144867,0.24354938,680.64,679.58,0.29429942]
[1738033145069,1.09515682,680.65,679.58,0.29429942]
[1738033145070,0.24354938,680.63,679.58,0.29429942]
[1738033145271,0.24354938,680.64,679.58,0.29429942]
[1738033145472,1.09515682,680.62,679.58,0.29429942]
[1738033145673,0.24354938,680.61,679.58,0.29429942]
[1738033146370,1.09515682,680.62,679.58,0.29429942]
[1738033146566,0.24354645,680.61,679.58,0.29429942]
[1738033148375,1.09515682,680.59,679.58,0.29429942]
[1738033151175,0.24354545,680.58,679.58,0.29429942]
[1738033151977,1.09515682,680.59,679.58,0.29429942]
[1738033152276,0.2435455,680.58,679.58,0.29429942]
[1738033153071,0.2435455,680.57,679.58,0.29429942]
[1738033153375,1.09515682,680.64,679.58,0.29429942]
[1738033153569,0.24354521,680.63,679.58,0.29429942]
[1738033155579,1.09515682,680.64,679.58,0.29429942]
[1738033155773,0.24354864,680.63,679.58,0.29429942]
[1738033156481,1.09515682,680.56,679.58,0.29429942]
[1738033159380,1.39216247,680.89,679.58,0.29429942]
[1738033159381,1.09515682,680.67,679.58,0.29429942]
[1738033163081,1.09515682,680.59,679.58,0.29429942]
[1738033169493,1.09515682,680.71,679.58,0.29429942]
[1738033172195,0.29381087,680.71,679.58,0.29429942]
[1738033174789,1.09515682,680.7,679.58,0.29429942]
[1738033175596,0.24356568,680.69,679.58,0.29429942]
[1738033177297,1.09515682,680.7,679.58,0.29429942]
[1738033177597,0.24356411,680.69,679.58,0.29429942]
[1738033178996,1.09515682,680.55,679.58,0.29429942]
[1738033182098,1.09515682,680.5,679.58,0.29429942]
[1738033185198,1.09515682,680.53,679.58,0.29429942]
[1738033188105,1.09515682,680.54,679.58,0.29429942]
[1738033190807,1.09515682,680.54,679.59,0.27022527]
[1738033191009,1.09515682,680.54,679.58,0.29429942]
[1738033191307,0.24352632,680.53,679.59,0.27022527]
[1738033191809,1.09515682,680.52,679.59,0.27022527]
[1738033192508,0.24352651,680.51,679.59,0.27022527]
[1738033193109,1.09515682,680.52,679.58,0.29429942]
[1738033195110,1.09515682,680.56,679.58,0.29429942]
[1738033197312,1.09515682,680.57,679.58,0.29429942]
[1738033200114,0.29381087,680.71,679.58,0.29429942]
[1738033200115,1.09515682,680.56,679.58,0.29429942]
[1738033203215,0.24352771,680.55,679.59,0.27022666]
[1738033203818,1.09515682,680.56,679.58,0.29429942]
[1738033207212,1.38896769,680.71,679.58,0.29429942]
[1738033209918,0.24353834,680.7,679.58,0.29429942]
[1738033210116,0.2938195,680.69,679.58,0.29429942]
[1738033219829,0.24356458,680.68,679.58,0.29429942]
[1738033222530,1.09515682,680.47,679.58,0.29429942]
[1738033222829,0.24356458,680.46,679.58,0.29429942]
[1738033223223,1.09515682,680.47,679.58,0.29429942]
[1738033225430,1.09515682,680.56,679.58,0.29429942]
[1738033227930,1.09515682,680.63,679.58,0.29429942]
[1738033228732,0.24351474,680.62,679.59,0.27021351]
[1738033229237,0.24351469,680.61,679.58,0.29429942]
[1738033229435,0.24351469,680.62,679.59,0.2702142]
[1738033229634,0.24351469,680.61,679.59,0.2702142]
[1738033229838,0.24351469,680.62,679.59,0.2702142]
[1738033230034,1.09515682,680.63,679.58,0.29429942]
[1738033230336,0.2435163,680.62,679.59,0.27021507]
[1738033231237,1.09515682,680.61,679.59,0.27021507]
[1738033231437,0.2435163,680.6,679.58,0.29429942]
[1738033232634,0.2435163,680.6,679.59,0.27022979]
[1738033232834,0.2435163,680.6,679.58,0.29429942]
[1738033233037,0.2435163,680.6,679.59,0.27022559]
[1738033233436,1.09515682,680.61,679.58,0.29429942]
[1738033234037,1.09515682,680.59,679.58,0.29429942]
[1738033236634,1.09515682,680.67,679.58,0.29429942]
[1738033238938,1.09515682,680.67,679.59,0.27019066]
[1738033240243,1.09515682,680.75,679.59,0.27019066]
[1738033240440,0.24346588,680.74,679.59,0.27019066]
[1738033241043,1.09515682,680.75,679.59,0.27019066]
[1738033241244,1.09515682,680.75,679.58,0.29429942]
[1738033243344,1.09515682,680.91,679.58,0.29429942]
[1738033243544,0.24347231,680.9,679.58,0.29429942]
[1738033246545,1.09515682,680.97,679.58,0.29429942]
[1738033246546,0.24347231,680.96,679.58,0.29429942]
[1738033246947,0.24346346,680.95,679.58,0.29429942]
[1738033247141,0.24346346,680.96,679.58,0.29429942]
[1738033251744,0.24346346,681.03,679.58,0.29429942]
[1738033251945,0.53714059,681.02,679.58,0.29429942]
[1738033252251,0.24346346,681.01,679.58,0.29429942]
[1738033253250,0.29368575,681.0,679.58,0.29429942]
[1738033253450,0.24349055,680.99,679.58,0.29429942]
[1738033254953,1.09515682,680.95,679.58,0.29429942]
[1738033255152,0.24349055,680.94,679.58,0.29429942]
[1738033255845,1.09515682,680.95,679.58,0.29429942]
[1738033256050,0.24349148,680.94,679.58,0.29429942]
[1738033256852,0.29371594,680.93,679.58,0.29429942]
[1738033257054,0.24349148,680.92,679.58,0.29429942]
[1738033257853,1.09515682,680.9,679.58,0.29429942]
[1738033258049,0.24350133,680.89,679.58,0.29429942]
[1738033258753,0.24351941,680.88,679.58,0.29429942]
[1738033258950,0.24351941,680.87,679.58,0.29429942]
[1738033259156,0.24351941,680.89,679.58,0.29429942]
[1738033259353,0.24351941,680.88,679.58,0.29429942]
[1738033259553,0.24351941,680.87,679.58,0.29429942]
[1738033259755,1.09515682,680.9,679.58,0.29429942]
[1738033259952,0.24352501,680.89,679.58,0.29429942]
[1738033260257,0.29373751,680.88,679.58,0.29429942]
[1738033260456,1.09515682,680.72,679.58,0.29429942]
[1738033260757,0.24352501,680.71,679.58,0.29429942]
[1738033263457,0.29373751,680.88,679.58,0.29429942]
[1738033263458,1.09515682,680.66,679.58,0.29429942]
[1738033264152,0.2435256,680.65,679.58,0.29429942]
[1738033264958,1.09515682,680.66,679.58,0.29429942]
[1738033265256,0.2435253,680.65,679.58,0.29429942]
[1738033266860,1.09515682,680.63,679.58,0.29429942]
[1738033269861,1.09515682,680.7,679.58,0.29429942]
[1738033270063,0.24352342,680.69,679.58,0.29429942]
[1738033272363,1.09515682,680.7,679.58,0.29429942]
[1738033272564,0.24352553,680.69,679.58,0.29429942]
[1738033273165,1.09515682,680.69,679.58,0.29429942]
[1738033276769,0.24352067,680.68,679.58,0.29429942]
[1738033277066,1.09515682,680.74,679.58,0.29429942]
[1738033277265,0.243521,680.73,679.58,0.29429942]
[1738033277561,0.24352099,680.72,679.58,0.29429942]
[1738033277766,0.24352099,680.73,679.58,0.29429942]
[1738033277966,0.24352099,680.72,679.58,0.29429942]
[1738033278168,1.09515682,680.74,679.58,0.29429942]
[1738033279668,1.09515682,680.7,679.58,0.29429942]
[1738033283474,1.09515682,680.81,679.58,0.29429942]
[1738033286876,1.09515682,680.8,679.58,0.29429942]
[1738033293073,0.24350642,680.79,679.58,0.29429942]
[1738033293776,1.09515682,680.77,679.58,0.29429942]
[1738033293976,0.24350642,680.76,679.58,0.29429942]
[1738033296874,1.09515682,680.72,679.58,0.29429942]